Cogmind - Beta 16.1 @@@ ROGUE MODE // 2026.02.14 @ 17:16:31 Player: ae Result: Destroyed by G-73 Enforcer with Heavy Laser Performance ------------- Evolutions (6) 3000 Regions Visited (14) 2800 Robots Destroyed (134) 670 Value Destroyed (4025) 4025 Prototype IDs (13) 260 Alien Tech Used (0) 0 Bonus (2725) 2725 TOTAL SCORE: 13480 Bonus ------- High Alert Combat Kills 68 Follower Combat Kills 357 Entered DSFs 500 Registered with UFD 300 Met Optimus in HQ 500 Met Warlord at Base 500 MAIN.C Attacked Warlord 500 Cogmind --------- Core Integrity 0/1150 Matter 300/300 Energy 94/100 System Corruption 0% Temperature Cool (9) Movement Core (50) Location -3/Proximity Caves Parts ------- > --- POWER (2) -------- (None) > --- PROPULSION (6) --- (None) > --- UTILITY (7) ------ Advanced Coolant Injector Improved Signal Interpreter Core Analyzer > --- WEAPON (4) ------- (None) > --- INVENTORY (5) ---- Light Antimatter Reactor Makeshift Ablative Armor Mapping Drone Bay (3/3) Vortex Driver (30) Vortex Driver (30) Peak State ------------ > --- POWER ------------ Angular Momentum Engine Micro Fission Core > --- PROPULSION ------- Improved Medium Treads Improved Medium Treads Improved Medium Treads Improved Medium Treads Improved Medium Treads Flexi-carbon Leg > --- UTILITY ---------- Huge Storage Unit Improved Signal Interpreter Advanced Recoil Stabilizer Improved Medium Armor Plating Hacking Suite > --- WEAPON ----------- Tesla Rifle Long-range Proton Cannon KE Penetrator Heavy Pick > --- INVENTORY -------- Light Ion Engine Light Armored Exoskeleton Light Armored Exoskeleton Light Armored Exoskeleton Light Armored Exoskeleton Light Armored Exoskeleton Improved Heat Sink Improved Cooling System Improved Coolant Injector Small Storage Unit Large Storage Unit Structural Scanner Improved Weapon Cycler System Shield Advanced System Restoration Module Recalibrator Rocket Launcher Mini Grenade Launcher Mini Grenade Launcher Heavy Pick [Rating: 89] Favorites ----------- Power Ion Engine Engine Ion Engine Power Core Micro Fission Core Reactor Light Antimatter Reactor Propulsion Titanium Leg Treads Improved Medium Treads Leg Titanium Leg Wheel Wheel Hover Unit Backup Propulsion I Flight Unit Nuclear Pulse Array Utility Huge Storage Unit Device Advanced Coolant Injector Storage Huge Storage Unit Processor Targeting Computer Hackware Hacking Suite Protection Improved Light Armor Plating Weapon Particle Gun Energy Gun Particle Gun Energy Cannon Long-range Proton Cannon Ballistic Gun Shotgun Ballistic Cannon Assault Cannon Launcher Rocket Launcher Special Weapon Mining Laser Slashing Weapon Makeshift Axe Piercing Weapon Heavy Pick Special Melee Weapon Dirty Datajack Build | -11 -10 -9 -8 -8 -8 -8 -6 -6 -5 -4 -4 -4 -4 -3 ------- Run | Yrd Mat Mat Mat Sto Rec Scr Fac DSF Fac Fac Upp Upp War Pro Slots Evolved 12 | . . 2 2 . . . 4 . 2 2 . . . . Power 1 | . . . . . . . . . 1 . . . . . Propulsion 4 | . . . 2 . . . 1 . 1 . . . . . Utility 5 | . . 2 . . . . 1 . . 2 . . . . Weapon 2 | . . . . . . . 2 . . . . . . . Parts Attached 175 | 7 6 24 4 8 1 3 2 5 46 29 27 . 12 1 Power 21 | 1 . 3 . 1 . . . 1 7 6 1 . 1 . Engine 11 | 1 . 3 . 1 . . . . 2 3 . . 1 . Core 5 | . . . . . . . . 1 4 . . . . . Reactor 5 | . . . . . . . . . 1 3 1 . . . Propulsion 50 | 2 2 5 1 4 . 1 1 2 14 7 6 . 5 . Treads 8 | . . . . . . . . . 8 . . . . . Leg 22 | 2 . 1 1 4 . 1 1 2 6 . 4 . . . Wheel 6 | . 2 4 . . . . . . . . . . . . Hover 1 | . . . . . . . . . . 1 . . . . Flight 13 | . . . . . . . . . . 6 2 . 5 . Utility 54 | 2 2 8 2 . 1 2 . 1 15 12 6 . 2 1 Device 25 | 1 1 2 2 . . . . 1 9 5 3 . 1 . Storage 4 | 1 1 1 . . . . . . . 1 . . . . Processor 13 | . . 3 . . . 1 . . 2 5 2 . . . Hackware 5 | . . . . . 1 1 . . 2 1 . . . . Protection 7 | . . 2 . . . . . . 2 . 1 . 1 1 Artifact . | . . . . . . . . . . . . . . . Weapon 50 | 2 2 8 1 3 . . 1 1 10 4 14 . 4 . Energy Gun 10 | 1 . 2 . 3 . . . 1 1 . 2 . . . Energy Cannon 2 | . . . . . . . . . 1 . . . 1 . Ballistic Gun 10 | 1 2 2 . . . . . . 5 . . . . . Ballistic Cannon 1 | . . . . . . . 1 . . . . . . . Launcher 6 | . . 3 1 . . . . . 1 . 1 . . . Special Weapon 1 | . . 1 . . . . . . . . . . . . Impact Weapon . | . . . . . . . . . . . . . . . Slashing Weapon 9 | . . . . . . . . . . 3 3 . 3 . Piercing Weapon 3 | . . . . . . . . . 2 1 . . . . Special Melee Weapon 8 | . . . . . . . . . . . 8 . . . Unidentified Prototypes 2 | . . 1 . . . . . . . . . . 1 . Parts Lost 97 | . 3 10 2 5 . . . 4 29 6 27 . . 11 Power 9 | . . 2 . 1 . . . . 3 1 1 . . 1 Propulsion 33 | . . 3 . 2 . . . 2 10 3 7 . . 6 Utility 25 | . 2 2 1 . . . . . 6 2 9 . . 3 Weapon 30 | . 1 3 1 2 . . . 2 10 . 10 . . 1 Highest Loss Streak 13 | . 2 3 2 4 . . . 2 11 4 13 . . 11 To Critical Strikes . | . . . . . . . . . . . . . . . Average Backups 17 | 4 12 24 22 23 25 24 24 21 19 6 3 4 4 5 Power . | . 1 . . . 1 1 1 1 1 . 1 2 1 1 Propulsion 4 | 2 5 6 7 7 7 6 5 5 4 1 . . . . Utility 8 | . 4 11 11 11 12 12 12 10 9 3 1 1 1 2 Weapon 3 | . 2 5 4 4 5 5 6 4 3 . . 1 1 2 Tool/Special . | . . . . . . . . . . . . . . . Unused Backups 38 | . . 7 . . . 1 . 7 16 4 1 . . 2 Power 5 | . . . . . . . . . 5 . . . . . Propulsion 9 | . . 4 . . . . . 2 2 1 . . . . Utility 17 | . . 1 . . . 1 . 4 7 3 . . . 1 Weapon 6 | . . 2 . . . . . 1 2 . . . . 1 Tool/Special 1 | . . . . . . . . . . . 1 . . . Average Slot Usage (%) 83 | . 97 93 98 95 100 100 86 93 89 61 32 31 72 66 Engine 6 | . 14 10 9 7 9 9 6 3 3 3 . . 7 6 Core 1 | . . . . . . . . 2 6 . . . . . Treads 3 | . . . . . . . . . 15 . . . . . Leg 16 | . 14 . 17 26 36 35 33 30 14 1 3 5 . . Wheel 3 | . 14 17 18 8 . . . . . . . . . . Flight 2 | . . . . . . . . . . 13 1 5 23 19 Device 4 | . 12 1 1 9 5 . 3 6 6 4 6 10 12 10 Storage 6 | . 14 11 9 9 9 9 6 6 4 4 . . . . Processor 11 | . . 28 18 18 18 12 6 6 5 7 9 10 10 10 Hackware 6 | . . . . . 3 14 13 13 6 16 . . . . Energy Gun 7 | . 12 5 9 7 18 18 13 17 4 . . . . . Ballistic Gun 3 | . 14 12 5 . . . . . 4 . . . . . Slashing Weapon 1 | . . . . . . . . . . 4 3 . 16 14 Piercing Weapon 1 | . . . . . . . . . 7 . . . . . Peak Build Rating 89 | 7 11 18 25 26 25 32 40 50 89 89 78 29 74 80 Average Rating 40 | 4 7 14 22 24 25 30 39 45 73 74 33 29 61 53 On Entrance 32 | . 7 8 16 25 25 25 32 40 49 49 75 29 29 74 Avg Prop Armor Cover (%) 14 | . . 4 8 8 . 15 . 4 11 16 18 15 14 . Naked Turns . | . . . . . . . . . . . . . . . Heaviest Build 128 | 12 90 96 95 92 92 91 97 102 128 39 21 4 28 36 Greatest Support 173 | 20 26 26 34 68 61 69 82 82 173 42 45 4 38 38 Greatest Overweight (x) 9 | 2 3 9 2 2 1 4 1 1 4 . 2 . . . Average Overweight (x) . | . 1 4 2 1 1 1 1 1 . . . . . . Largest Inventory Capacity 25 | 8 25 25 25 25 25 25 25 25 25 8 8 5 5 5 Average Capacity 19 | 7 16 25 25 25 25 25 25 25 24 7 5 5 5 5 Most Carried 25 | 7 24 25 24 25 25 25 24 25 25 8 6 4 5 5 Average Carried 18 | 4 12 24 22 23 25 24 22 22 24 6 3 4 4 4 Final Capacity 25 | 8 25 25 25 25 25 25 25 25 5 8 5 5 5 5 Final Carried 25 | 7 24 25 22 25 25 25 22 23 5 7 4 4 5 5 Class Distribution -------------------- 45% | Mutant 22% | Hacker-Mutant 15% | Scavenger-Mutant 4% | Scavenger-Skirmisher 3% | Derelict-Mutant Dominant Class ---------------- Mutant | -10/Materials Mutant | -9/Materials Mutant | -8/Materials Mutant | -8/Storage Mutant | -8/Recycling Hacker-Mutant | -8/Scraptown Hacker-Mutant | -6/Factory Scavenger-Skirmisher | -6/DSF Scavenger-Mutant | -5/Factory Hacker-Mutant | -4/Factory Mutant | -4/Upper Caves Mutant | -4/Upper Caves Derelict-Mutant | -4/Warlord Derelict-Mutant | -3/Proximity Caves Resources | -11 -10 -9 -8 -8 -8 -8 -6 -6 -5 -4 -4 -4 -4 -3 ----------- Run | Yrd Mat Mat Mat Sto Rec Scr Fac DSF Fac Fac Upp Upp War Pro Matter Collected 3415 | 277 94 632 24 189 . 70 . 132 923 481 420 . 154 19 Remotely 65 | 33 32 . . . . . . . . . . . . . Salvage Created 5109 | 68 141 956 140 275 . . . 77 2487 593 372 . . . Parts 273 | 2 5 66 12 18 . . . 4 114 43 9 . . . Haulers Intercepted 6 | . . 4 . . . . . . 1 1 . . . . Recyclers Shooed 6 | . 2 . . 1 . . . . 2 1 . . . . Parts Field Recycled . | . . . . . . . . . . . . . . . Retrieved Matter . | . . . . . . . . . . . . . . . Parts Self-Destructed 12 | . . . . . . . . . . . 12 . . . Prevented . | . . . . . . . . . . . . . . . Parts Restored . | . . . . . . . . . . . . . . . Kills | -11 -10 -9 -8 -8 -8 -8 -6 -6 -5 -4 -4 -4 -4 -3 ------- Run | Yrd Mat Mat Mat Sto Rec Scr Fac DSF Fac Fac Upp Upp War Pro Combat Hostiles Destroyed 81 | . 2 26 3 5 . . . 1 35 3 6 . . . Melee 20 | . . . . . . . . . 16 3 1 . . . Guns 29 | . 2 19 . 1 . . . 1 3 . 3 . . . Cannons 2 | . . 1 . 1 . . . . . . . . . . AOE 29 | . . 6 3 3 . . . . 15 . 2 . . . Classes Destroyed 17 | 1 2 6 1 . . . . 1 4 2 . . . . Worker 15 | . . 1 . 1 . . . . 5 8 . . . . Builder 10 | . . 1 . 1 . . . . 5 3 . . . . Tunneler 1 | . . . . . . . . . . 1 . . . . Hauler 6 | . . 4 . . . . . . 1 1 . . . . Recycler 12 | 1 1 . . 2 . . . . 7 1 . . . . Mechanic 1 | . . . 1 . . . . . . . . . . . Operator 4 | . . 3 1 . . . . . . . . . . . Watcher 4 | . 1 1 1 . . . . . 1 . . . . . Swarmer 24 | . . 13 . . . . . . 9 . 2 . . . Cutter 3 | . . . . . . . . . . 3 . . . . Grunt 25 | . 2 9 3 3 . . . . 7 . 1 . . . Duelist 1 | . . . . . . . . . 1 . . . . . Sentry 10 | . . 4 . 2 . . . . 3 . 1 . . . Specialist 1 | . . . . . . . . 1 . . . . . . Hunter 7 | . . . . . . . . . 5 . 2 . . . Programmer 9 | . . . . . . . . . 9 . . . . . Behemoth 1 | . . . . . . . . . 1 . . . . . Best Kill Streak 11 | 1 2 11 5 4 . . . 1 9 5 3 . . . Combat Bots Only 11 | . 2 11 3 3 . . . 1 6 3 3 . . . Max Kills in Single Turn 5 | 1 1 3 2 2 . . . 1 5 1 2 . . . Gunslinging . | . . . . . . . . . . . . . . . Exploded 3 | . . 3 1 1 . . . . 3 . 2 . . . Melee 1 | . . . . . . . . . 1 1 1 . . . Uniques/NPCs Destroyed . | . . . . . . . . . . . . . . . Combat | -11 -10 -9 -8 -8 -8 -8 -6 -6 -5 -4 -4 -4 -4 -3 -------- Run | Yrd Mat Mat Mat Sto Rec Scr Fac DSF Fac Fac Upp Upp War Pro Hostile Shots Fired 972 | . 20 103 18 41 . . . 21 389 149 141 . 4 86 Missed 312 | . 2 31 3 13 . . . 3 93 76 48 . 2 41 Hits 660 | . 18 72 15 28 . . . 18 296 73 93 . 2 45 Melee 20 | . . . . . . . . . . 13 7 . . . Projectile 640 | . 18 72 15 28 . . . 18 296 60 86 . 2 45 Critical Strikes 28 | . . 1 3 . . . . . 12 7 3 . . 2 Actively Blocked 1 | . . . . . . . . . . . 1 . . . Part Disruptions 5 | . . . . . . . . 2 3 . . . . . Damage Taken 13559 | . 538 1014 398 633 . . . 710 5892 1280 2161 . 54 879 Core 2185 | . 212 203 61 94 . . . 49 400 267 632 . 22 245 Absorbed by Shields 89 | . . . . . . . . . . 40 . . 49 . Redirected to Shielding 61 | . . . . . . . . . . . 61 . . . Regen/Repaired (Parts) 445 | . 11 . . . . 415 . . 19 . . . . . Core Remaining (%) 64 | 100 15 49 . . . 71 . 94 60 . . . . . Volleys Fired 217 | 7 41 77 13 15 . . . 2 50 . 12 . . . Largest 4 | 2 2 2 2 2 . . . 2 4 . 2 . . . Hottest 179 | 70 70 150 80 150 . . . 102 179 . 138 . . . Shots Fired 369 | 14 52 133 26 22 . . . 4 103 . 15 . . . Gun 295 | 14 52 119 22 10 . . . 2 62 . 14 . . . Cannon 7 | . . . . . . . . 2 5 . . . . . Launcher 56 | . . 9 4 6 . . . . 36 . 1 . . . Special 11 | . . 5 . 6 . . . . . . . . . . Kinetic 170 | 7 15 90 9 . . . . 2 47 . . . . . Thermal 96 | 7 37 7 13 16 . . . 2 . . 14 . . . Explosive 55 | . . 9 4 6 . . . . 36 . . . . . Electromagnetic 48 | . . 27 . . . . . . 20 . 1 . . . Robot Hit Streak 17 | 3 11 17 7 11 . . . 6 8 . 11 . . . Robot Miss Streak 4 | 2 2 4 2 2 . . . . 4 . 2 . . . Penetration Max 1 | . . . . . . . . . 1 . . . . . Secondary Targets 5 | . . 4 1 . . . . . . . . . . . Max Gunslinging Chain 1 | . . 1 1 . . . . . . . . . . . Shots Hit Robots 394 | 8 21 98 19 16 . . . 3 133 24 69 . 3 . Core Hits 265 | 3 9 62 15 15 . . . 3 104 17 36 . 1 . Critical Kills 1 | . . . . . . . . . 1 . . . . . Critical Parts Destroyed 3 | . . 2 . . . . . . 1 . . . . . Critical Strikes 20 | . 1 2 . 1 . . . . 11 . 3 . 2 . Burn 4 | . 1 . . 1 . . . . . . 2 . . . Destroy 4 | . . 2 . . . . . . 2 . . . . . Sever 3 | . . . . . . . . . . . 1 . 2 . Impale 9 | . . . . . . . . . 9 . . . . . Melee Attacks 232 | . . . . . . . . . 116 51 61 . 4 . Impact . | . . . . . . . . . . . . . . . Slashing 54 | . . . . . . . . . . 48 2 . 4 . Piercing 178 | . . . . . . . . . 116 3 59 . . . Sneak Attacks 30 | . . . . . . . . . 8 13 9 . . . Combat Hostiles 7 | . . . . . . . . . . . 7 . . . Follow-up Attacks 8 | . . . . . . . . . 6 1 . . 1 . Damage Inflicted 11986 | 76 298 1902 542 553 8 . . 46 6261 1618 569 . 113 . Guns 3176 | 76 298 1318 153 90 . . . 26 978 . 237 . . . Cannons 86 | . . . . . . . . 20 66 . . . . . Explosions 4208 | . . 536 389 391 . . . . 2745 . 147 . . . Melee 4368 | . . . . . . . . . 2464 1607 184 . 113 . Ramming 28 | . . . . . 8 . . . 8 11 1 . . . Kinetic 1922 | 38 186 827 55 . . . . 20 796 . . . . . Thermal 1106 | 38 112 346 98 162 . . . 26 . . 324 . . . Explosive 3757 | . . 263 389 391 . . . . 2714 . . . . . Electromagnetic 805 | . . 466 . . . . . . 279 . 60 . . . Impact . | . . . . . . . . . . . . . . . Slashing 1484 | . . . . . . . . . . 1325 46 . 113 . Piercing 2884 | . . . . . . . . . 2464 282 138 . . . Highest Corruption 11 | . . 1 . . . . . . 9 . 11 11 11 . Average Corruption 5 | . . 1 . . . . . . 3 . 8 11 11 . Corruption Purged 9 | . . . . . . . . . 9 . . . . . Corruption Blocked . | . . . . . . . . . . . . . . . Effects 89 | . . 4 . . . . . . 30 . 48 6 1 . Message Errors 19 | . . 1 . . . . . . 8 . 7 2 1 . Matter Fused 20 | . . 2 . . . . . . 3 . 12 3 . . Heat Flow Errors 10 | . . . . . . . . . 3 . 7 . . . Energy Discharges 8 | . . 1 . . . . . . 3 . 4 . . . Parts Rejected 2 | . . . . . . . . . 1 . 1 . . . Parts Fused 2 | . . . . . . . . . 1 . 1 . . . Data Loss (minor) 16 | . . . . . . . . . 5 . 10 1 . . Data Loss (major) 6 | . . . . . . . . . 3 . 3 . . . Misfires 1 | . . . . . . . . . 1 . . . . . Alerts 3 | . . . . . . . . . 1 . 2 . . . Misdirections 1 | . . . . . . . . . . . 1 . . . Weapon Failures 1 | . . . . . . . . . 1 . . . . . Overload Shots . | . . . . . . . . . . . . . . . Overflow Damage 839 | . . 57 . 7 . . . . 538 216 21 . . . Projectiles . | . . . . . . . . . . . . . . . Explosions 147 | . . 57 . 7 . . . . 62 . 21 . . . Melee 692 | . . . . . . . . . 476 216 . . . . Knockbacks 1 | . . . . . . . . 1 . . . . . . Impact . | . . . . . . . . . . . . . . . Kinetic 1 | . . . . . . . . 1 . . . . . . Secondary . | . . . . . . . . . . . . . . . Self-Inflicted Damage 945 | . . 296 167 212 . . . . 166 5 99 . . . Shots 23 | . . 6 4 5 . . . . 6 . 2 . . . Rammed 6 | . . . . . . . . . . 5 1 . . . Targets Rammed 8 | . . . . . 1 . . . 1 5 1 . . . Kicked 1 | . . . . . 1 . . . . . . . . . Crushed 1 | . . . . . . . . . 1 . . . . . Highest Temperature 373 | 90 240 88 200 . . . . . 373 5 190 . 1 27 Average Temperature 75 | 37 93 26 69 . . . . . 116 3 94 . 1 5 Received Heat Transfer 1899 | . 135 204 189 198 . . . . 787 129 156 . 4 97 Effects 1 | . . . . . . . . . 1 . . . . . Interference 1 | . . . . . . . . . 1 . . . . . Siege Activations . | . . . . . . . . . . . . . . . Martial Activations . | . . . . . . . . . . . . . . . Shielding Activations . | . . . . . . . . . . . . . . . Robots Disrupted 1 | . . 1 . . . . . . . . . . . . Combat Hostiles 1 | . . 1 . . . . . . . . . . . . Robots Corrupted 1 | . . . . . . . . . 1 . . . . . Combat Hostiles 1 | . . . . . . . . . 1 . . . . . Parts Fried 4 | . . 2 . . . . . . 2 . . . . . Impact Corruptions . | . . . . . . . . . . . . . . . Robots Melted . | . . . . . . . . . . . . . . . Combat Hostiles . | . . . . . . . . . . . . . . . Parts Melted 3 | . 1 . . 1 . . . . . . 1 . . . Heat Transferred 2491 | 111 407 374 296 483 . . . 74 . . 746 . . . Parts Sabotaged . | . . . . . . . . . . . . . . . Parts Stolen . | . . . . . . . . . . . . . . . Parts Stripped . | . . . . . . . . . . . . . . . Power Chain Reactions 5 | . . 3 . . . . . . 1 . 1 . . . Alert | -11 -10 -9 -8 -8 -8 -8 -6 -6 -5 -4 -4 -4 -4 -3 ------- Run | Yrd Mat Mat Mat Sto Rec Scr Fac DSF Fac Fac Upp Upp War Pro Maximum Alert Level 2 | . . 2 . . . . . . 2 2 . . . . Low Security (%) 74 | 100 100 77 100 100 100 . 100 100 55 78 . . . . Level 1 20 | . . 18 . . . . . . 35 15 . . . . Level 2 5 | . . 3 . . . . . . 9 6 . . . . Level 3 . | . . . . . . . . . . . . . . . Level 4 . | . . . . . . . . . . . . . . . Level 5 . | . . . . . . . . . . . . . . . High Security . | . . . . . . . . . . . . . . . Max Security . | . . . . . . . . . . . . . . . Peak Influence 531 | 5 50 407 113 98 38 . . 50 499 531 . . . . Initial 225 | . . 5 65 39 18 . . . 4 225 . . . . Average 133 | 1 4 129 65 42 7 . . 30 183 186 . . . . Influence Increases 4183 | 5 95 980 118 216 30 . . 50 1312 746 316 . 120 195 Destroy 0b10 Robot/C 1780 | . 40 520 60 100 . . . 20 700 60 180 . 100 . Destroy 0b10 Robot/NC 265 | 5 10 50 15 20 . . . . 95 70 . . . . Destroy Leader 370 | . 12 130 12 30 . . . . 164 12 10 . . . Allied During Kill 26 | . . . . . . . . . . . 6 . 20 . Successful Hack 117 | . 3 19 . . . . . . 44 51 . . . . Select Force Hacks 140 | . 30 30 . 30 30 . . . 20 . . . . . Disable Machine 270 | . . 135 15 . . . . 15 90 15 . . . . Destroy Structure 315 | . . 81 16 36 . . . . 154 28 . . . . Partial Spotted 15 | . . . . . . . . . . 15 . . . . Lose Combat Pursuer 885 | . . 15 . . . . . 15 45 495 120 . . 195 Influence Decreases 4078 | 5 81 838 181 261 78 . . 40 861 686 822 15 28 182 Entered New Map 716 | . . 9 91 54 30 . . . 6 236 194 4 . 92 Time Decay 1863 | 5 61 354 70 157 48 . . . 425 380 316 11 16 20 Lost Part 850 | . 20 90 20 50 . . . 40 280 60 220 . . 70 Lost Ally 114 | . . . . . . . . . . 10 92 . 12 . Purge Threat 535 | . . 385 . . . . . . 150 . . . . . Squads Dispatched 25 | . 1 4 2 1 . . . . 9 8 . . . . Investigation 10 | . 1 2 . 1 . . . . 2 4 . . . . Extermination 7 | . . . . . . . . . 4 3 . . . . Reinforcement 8 | . . 2 2 . . . . . 3 1 . . . . Assault . | . . . . . . . . . . . . . . . Garrison . | . . . . . . . . . . . . . . . Intercept . | . . . . . . . . . . . . . . . Searches Triggered . | . . . . . . . . . . . . . . . Construction Impeded 1 | . . . . . . . . . 1 . . . . . Haulers Reinforced 1 | . . . . . . . . . 1 . . . . . Active Scanning Responses . | . . . . . . . . . . . . . . . Cargo Convoy Interrupts . | . . . . . . . . . . . . . . . Stealth | -11 -10 -9 -8 -8 -8 -8 -6 -6 -5 -4 -4 -4 -4 -3 --------- Run | Yrd Mat Mat Mat Sto Rec Scr Fac DSF Fac Fac Upp Upp War Pro Distress Signals 4 | . . . 1 . . . . . 1 2 . . . . Communications Jammed . | . . . . . . . . . . . . . . . Distress Signals . | . . . . . . . . . . . . . . . Times Spotted 239 | . 3 51 6 5 . . . 3 51 52 38 . 14 16 Peak Tracking Total 22 | . 2 8 3 3 . . . 1 7 22 5 . 10 8 Tactical Retreats 27 | . . 1 . . . . . 1 3 12 7 . . 3 Traps | -11 -10 -9 -8 -8 -8 -8 -6 -6 -5 -4 -4 -4 -4 -3 ------- Run | Yrd Mat Mat Mat Sto Rec Scr Fac DSF Fac Fac Upp Upp War Pro Traps Triggered 7 | . 3 . . . . . . . 1 3 . . . . Indirectly . | . . . . . . . . . . . . . . . Trap Hack Attempts . | . . . . . . . . . . . . . . . Triggered . | . . . . . . . . . . . . . . . Disarmed . | . . . . . . . . . . . . . . . Reprogrammed . | . . . . . . . . . . . . . . . Reused . | . . . . . . . . . . . . . . . Traps Extracted . | . . . . . . . . . . . . . . . Installed . | . . . . . . . . . . . . . . . Triggered . | . . . . . . . . . . . . . . . Machines | -11 -10 -9 -8 -8 -8 -8 -6 -6 -5 -4 -4 -4 -4 -3 ---------- Run | Yrd Mat Mat Mat Sto Rec Scr Fac DSF Fac Fac Upp Upp War Pro Machines Disabled 18 | . . 9 1 . . . . 1 6 1 . . . . Max in Single Turn 2 | . . 2 1 . . . . 1 1 1 . . . . Garrison Access 3 | . . . . . . . . . 3 . . . . . Machines Repaired . | . . . . . . . . . . . . . . . Machines Dismantled . | . . . . . . . . . . . . . . . Machines Sabotaged . | . . . . . . . . . . . . . . . Overloaded Fab Kills . | . . . . . . . . . . . . . . . Hacking | -11 -10 -9 -8 -8 -8 -8 -6 -6 -5 -4 -4 -4 -4 -3 --------- Run | Yrd Mat Mat Mat Sto Rec Scr Fac DSF Fac Fac Upp Upp War Pro Machines Accessed 48 | . 2 6 . 1 5 3 1 . 11 12 1 . 6 . Terminals 18 | . . 3 . . 3 . 1 . 4 7 . . . . Fabricators 2 | . . . . . . . . . 1 1 . . . . Repair Stations 5 | . 1 1 . . . . . . 1 2 . . . . Recycling Units 7 | . 1 1 . 1 1 . . . 1 2 . . . . Scanalyzers 2 | . . 1 . . . . . . 1 . . . . . Garrison Access 3 | . . . . . . . . . 3 . . . . . Total Hacks 118 | . 7 20 . 1 13 11 1 . 26 26 1 . 12 . Successful 85 | . 6 13 . 1 11 11 1 . 13 16 1 . 12 . Failed 33 | . 1 7 . . 2 . . . 13 10 . . . . Catastrophic 7 | . . 2 . . . . . . 3 2 . . . . Database Lockouts . | . . . . . . . . . . . . . . . Manual 49 | . 1 6 . 2 5 . . . 16 18 . . 1 . Terminals 57 | . . 15 . . 7 . 1 . 15 19 . . . . Fabricators 3 | . . . . . . . . . 1 2 . . . . Repair Stations 10 | . 3 1 . . . . . . 3 3 . . . . Recycling Units 11 | . 4 1 . 1 1 . . . 2 2 . . . . Scanalyzers 4 | . . 3 . . . . . . 1 . . . . . Garrison Access 4 | . . . . . . . . . 4 . . . . . Terminal Hacks 47 | . . 5 . . 9 11 1 . 3 5 1 . 12 . Record 19 | . . . . . 5 4 . . . . . . 10 . Part Schematic 1 | . . . . . 1 . . . . . . . . . Robot Analysis 6 | . . . . . . 6 . . . . . . . . Prototype ID Bank 2 | . . . . . 1 . . . . 1 . . . . Open Door 3 | . . . . . . . . . . . 1 . 2 . Open DSF 1 | . . . . . . . 1 . . . . . . . Level Access Points 1 | . . . . . . . . . 1 . . . . . Branch Access Points 2 | . . . . . . . . . 1 1 . . . . Terminal Index 2 | . . 1 . . . . . . . 1 . . . . Unreport Threat 4 | . . 3 . . . . . . 1 . . . . . Locate Traps 1 | . . . . . . . . . . 1 . . . . Recall Extermination 1 | . . . . . . . . . . 1 . . . . Zone Layout 3 | . . 1 . . 2 . . . . . . . . . Proto ID Catalog 1 | . . . . . . 1 . . . . . . . . Fabricator Hacks . | . . . . . . . . . . . . . . . Repair Station Hacks 7 | . 2 1 . . . . . . 2 2 . . . . Scan Component 3 | . 1 . . . . . . . 1 1 . . . . Repair 3 | . 1 . . . . . . . 1 1 . . . . Refit 1 | . . 1 . . . . . . . . . . . . Recycling Unit Hacks 3 | . 3 . . . . . . . . . . . . . Report Inventory 1 | . 1 . . . . . . . . . . . . . Retrieve Matter 1 | . 1 . . . . . . . . . . . . . Retrieve Components 1 | . 1 . . . . . . . . . . . . . Scanalyzer 3 | . . 3 . . . . . . . . . . . . Retrieve Study 3 | . . 3 . . . . . . . . . . . . Garrison Access Hacks 3 | . . . . . . . . . 3 . . . . . Seal Access 3 | . . . . . . . . . 3 . . . . . Unauthorized Hacks 22 | . 1 4 . 1 2 . . . 5 9 . . . . Terminals 13 | . . 3 . . 1 . . . 4 5 . . . . Track 1 | . . . . . . . . . . 1 . . . . Assimilate 3 | . . 1 . . . . . . 1 1 . . . . Botnet 8 | . . 2 . . 1 . . . 2 3 . . . . Operators 1 | . . . . . . . . . 1 . . . . . Fabricators 3 | . . . . . . . . . 1 2 . . . . Liberate 1 | . . . . . . . . . . 1 . . . . Fabnet 1 | . . . . . . . . . . 1 . . . . Download 1 | . . . . . . . . . 1 . . . . . Repair Stations . | . . . . . . . . . . . . . . . Recycling Units 6 | . 1 1 . 1 1 . . . . 2 . . . . Tunnel 4 | . 1 1 . 1 1 . . . . . . . . . Fedlink 2 | . . . . . . . . . . 2 . . . . Scanalyzers . | . . . . . . . . . . . . . . . Garrison Access . | . . . . . . . . . . . . . . . Data Cores Recovered . | . . . . . . . . . . . . . . . Used . | . . . . . . . . . . . . . . . Hacking Detections 22 | . . 3 . . 3 . . . 7 9 . . . . Full Trace Events 2 | . . 1 . . . . . . 1 . . . . . Feedback Events 1 | . . 1 . . . . . . . . . . . . Corruption 1 | . . 1 . . . . . . . . . . . . Feedback Blocked . | . . . . . . . . . . . . . . . Robot Schematics Acquired . | . . . . . . . . . . . . . . . Robots Built . | . . . . . . . . . . . . . . . Authchips . | . . . . . . . . . . . . . . . Time . | . . . . . . . . . . . . . . . Total Robot Build Rating . | . . . . . . . . . . . . . . . Part Schematics Acquired 1 | . . . . . 1 . . . . . . . . . Parts Built . | . . . . . . . . . . . . . . . Authchips . | . . . . . . . . . . . . . . . Time . | . . . . . . . . . . . . . . . Total Part Build Rating . | . . . . . . . . . . . . . . . Part Studies Acquired 2 | . . 2 . . . . . . . . . . . . Parts Repaired 2 | . 1 . . . . . . . 1 . . . . . Time 104 | . 26 . . . . . . . 16 62 . . . . Parts Recycled . | . . . . . . . . . . . . . . . Recycled Matter . | . . . . . . . . . . . . . . . Retrieved Matter . | . . . . . . . . . . . . . . . Retrieved Components 3 | . 3 . . . . . . . . . . . . . Parts Scanalyzed . | . . . . . . . . . . . . . . . Part Schematics Acquired . | . . . . . . . . . . . . . . . Parts Damaged . | . . . . . . . . . . . . . . . Bothacking | -11 -10 -9 -8 -8 -8 -8 -6 -6 -5 -4 -4 -4 -4 -3 ------------ Run | Yrd Mat Mat Mat Sto Rec Scr Fac DSF Fac Fac Upp Upp War Pro Used RIF Installer . | . . . . . . . . . . . . . . . Robots Hacked . | . . . . . . . . . . . . . . . Non-combat . | . . . . . . . . . . . . . . . Combat . | . . . . . . . . . . . . . . . Robot Hacks Applied . | . . . . . . . . . . . . . . . Relay Couplers Released . | . . . . . . . . . . . . . . . Fabnet Peak Effective % . | . . . . . . . . . . . . . . . Robots Rewired 6 | . . . . . . . . . . . 1 . 5 . Allies Hacked . | . . . . . . . . . . . . . . . Hacks Repelled . | . . . . . . . . . . . . . . . Allies | -11 -10 -9 -8 -8 -8 -8 -6 -6 -5 -4 -4 -4 -4 -3 -------- Run | Yrd Mat Mat Mat Sto Rec Scr Fac DSF Fac Fac Upp Upp War Pro Total Allies 15 | . . . . . . . . . . 1 9 . 5 . Largest Group 5 | . . . . . . . . . . 1 1 . 5 . Highest-Rated Group 293 | . . . . . . . . . . 26 64 . 293 . Highest-Rated Ally 68 | . . . . . . . . . . 26 64 . 68 . Initial UFD Resources 48 | . . . . . . . 23 23 27 31 45 45 45 48 Total Orders 1 | . . . . . . . . . . . 1 . . . EXPLORE 1 | . . . . . . . . . . . 1 . . . Ally Attacks 37 | . . . . . . . . . . . 15 . 22 . Total Damage 1407 | . . . . . . . . . . . 550 . 857 . Kills 9 | . . . . . . . . . . . 3 . 6 . Allies Corrupted 1 | . . . . . . . . . . . 1 . . . Allies Melted 3 | . . . . . . . . . . . . . 3 . Intel | -11 -10 -9 -8 -8 -8 -8 -6 -6 -5 -4 -4 -4 -4 -3 ------- Run | Yrd Mat Mat Mat Sto Rec Scr Fac DSF Fac Fac Upp Upp War Pro Active Infowar (turns) 3355 | . . . . . . 2288 11 145 845 46 20 . . . Optics 2869 | . . . . . . 2288 11 145 425 . . . . . Sensors 265 | . . . . . . . . . 222 43 . . . . Structural 260 | . . . . . . . . . 260 . . . . . Jamming 23 | . . . . . . . . . . 3 20 . . . Robot Analysis Total 6 | . . . . . . 6 . . . . . . . . Derelict Logs Recovered 2 | . . . . . . . . . . . 1 1 . . Drone Launches 3 | . . . . . . . . . . . 3 . . . Drone Recoveries 1 | . . . . . . . . . . . 1 . . . Exploration | -11 -10 -9 -8 -8 -8 -8 -6 -6 -5 -4 -4 -4 -4 -3 ------------- Run | Yrd Mat Mat Mat Sto Rec Scr Fac DSF Fac Fac Upp Upp War Pro Turns Passed 12975 | 80 529 1869 147 327 287 3557 11 145 2615 897 1508 213 692 98 Spaces Moved 8486 | 39 217 924 38 113 140 1664 5 60 1068 1409 1108 426 1046 229 Core 591 | 8 . . . . . . . . 30 23 529 . . 1 Treads 530 | . . . . . . . . . 530 . . . . . Legs 2818 | 31 73 . 38 113 140 1646 5 60 508 . 204 . . . Wheels 1086 | . 144 924 . . . 18 . . . . . . . . Hover 56 | . . . . . . . . . . 56 . . . . Flight 3405 | . . . . . . . . . . 1330 375 426 1046 228 Fastest Speed 30 | 50 120 125 270 196 197 140 196 195 50 33 45 45 30 30 Average Speed 115 | 110 129 157 270 220 197 196 196 199 181 40 73 45 39 37 Slowest Speed 480 | 150 135 215 270 270 197 197 196 213 480 110 150 45 52 55 Overloaded Moves . | . . . . . . . . . . . . . . . Propulsion Burnouts . | . . . . . . . . . . . . . . . Robots Hopped 14 | . . . . . . . . . . 9 1 . 3 1 Potential Cave-ins . | . . . . . . . . . . . . . . . Cave-ins Triggered . | . . . . . . . . . . . . . . . Exploration Rate (%) 46 | 3 30 72 5 21 26 92 . 46 32 43 86 61 93 37 Regions Visited 14 Branch Regions 7 Pre-discovered Areas 6 | . 1 1 . 1 1 1 . . . 1 . . . . Known Exits Taken 6 | . . . . . . . 1 . 1 1 1 1 1 . Unknown Exits Taken 7 | 1 1 1 1 1 1 1 . . . . . . . . Scrap Searched 5 | . . . . . . 2 . . . . 1 . . 2 Spaces Dug 36 | . . 3 . . . . . . 19 14 . . . . Terrain Destroyed 275 | . . 85 18 48 . . . . 94 14 16 . . . Melee 33 | . . . . . . . . . 19 14 . . . . Projectile 6 | . . 3 . 3 . . . . . . . . . . AOE 236 | . . 82 18 45 . . . . 75 . 16 . . . Terrain Rammed . | . . . . . . . . . . . . . . . Walls Destroyed . | . . . . . . . . . . . . . . . Machines Disabled . | . . . . . . . . . . . . . . . Actions | -11 -10 -9 -8 -8 -8 -8 -6 -6 -5 -4 -4 -4 -4 -3 --------- Run | Yrd Mat Mat Mat Sto Rec Scr Fac DSF Fac Fac Upp Upp War Pro Total 10981 | 59 413 1201 58 153 150 1955 7 87 1435 1657 1805 446 1314 241 Wait 1533 | . 130 123 . 10 9 273 . 1 83 131 543 21 208 1 Move 8447 | 38 216 923 37 112 139 1663 4 59 1067 1392 1105 425 1040 227 Hop 11 | . . . . . . . . . . 7 1 . 2 1 Pick Up 116 | 7 19 17 . 3 . 4 . 7 30 16 9 . 3 1 Fast Attach 92 | 7 1 12 1 3 . 1 . 2 18 18 16 . 11 2 Attach 72 | . . 10 4 3 . . 3 1 22 10 15 . 3 1 Detach 33 | . . 6 1 1 . 1 . 1 5 8 6 . 4 . Swap 74 | . 5 14 2 6 1 7 . 2 29 6 . . . 2 Drop 96 | . 1 17 . . . 5 . 12 29 15 4 . 7 6 Fire 217 | 7 41 77 13 15 . . . 2 50 . 12 . . . Melee 214 | . . . . . . . . . 101 49 61 . 3 . Ram 6 | . . . . . . . . . . 5 1 . . . Kick 1 | . . . . . 1 . . . . . . . . . Crush 1 | . . . . . . . . . 1 . . . . . Escape Stasis . | . . . . . . . . . . . . . . . Rewire 68 | . . 2 . . . 1 . . . . 32 . 33 . Trap . | . . . . . . . . . . . . . . . Miscellaneous . | . . . . . . . . . . . . . . . Route ------- -11/Scrapyard -10/Materials -9/Materials (discovered 3 exits: [*Mat x3]) -8/Materials -8/Storage -8/Recycling -8/Scraptown (discovered 2 exits: *Fac x2) -6/Factory -6/DSF -5/Factory (discovered 6 exits: *Fac x4 / Upp x2) -4/Factory (discovered 4 exits: *Upp x2 / Ext x2) -4/Upper Caves -4/Upper Caves (discovered 2 exits: *Res / *War) -4/Warlord -3/Proximity Caves History --------- Turn | Location | Event 16 | -11/Scrapyard | Discovered new exit (range 16) 81 | -11/Scrapyard | Entered Materials 138 | -10/Materials | Repaired Sensor Array 303 | -10/Materials | Build established: Mutant 464 | -10/Materials | Discovered new exit (range 4) 589 | -10/Materials | Core integrity fell below 50% 589 | -10/Materials | Core integrity fell below 20% 610 | -10/Materials | Entered another Materials area 610 | -9/Materials | Evolved 2 slots: Utility x2 1191 | -9/Materials | Discovered new exit (range 3) 1532 | -9/Materials | Destroyed 11 combat bots 1575 | -9/Materials | Discovered new exit (range 6) 1812 | -9/Materials | Lost 3 parts (1n1u1w) 2356 | -9/Materials | Core integrity fell below 50% 2410 | -9/Materials | Discovered new exit (range 3) 2479 | -9/Materials | Entered another Materials area 2479 | -8/Materials | Evolved 2 slots: Propulsion x2 2585 | -8/Materials | Discovered new exit (range 6) 2626 | -8/Materials | Entered Storage 2841 | -8/Storage | Lost 4 parts (1p1n2w) 2945 | -8/Storage | Used back door to open Recycling access 2945 | -8/Storage | Discovered new exit (range 5) 2953 | -8/Storage | Entered Recycling 3173 | -8/Recycling | Scanned before Scraplab entrance 3202 | -8/Recycling | Entered Scraplab 3236 | -8/Recycling | Discovered new exit (range 3) 3240 | -8/Recycling | Entered Scraptown 3430 | -8/Scraptown | Visited UFD Registry 3430 | -8/Scraptown | Registered with UFD as "Automech" 3444 | -8/Scraptown | Build established: Scavenger-Mutant 3536 | -8/Scraptown | Discovered new exit (range 11) 4119 | -8/Scraptown | Build established: Mutant 4150 | -8/Scraptown | Learned location of Extension (-4) 4231 | -8/Scraptown | Visited CR-KLE's Repair Center 4247 | -8/Scraptown | Visited Comm Corps 4371 | -8/Scraptown | Visited The Evicted 4460 | -8/Scraptown | Visited Junk Repository 4784 | -8/Scraptown | Visited Spacefarers 4815 | -8/Scraptown | Build established: Hacker-Mutant 4973 | -8/Scraptown | CR-KLE repaired 8 parts 5130 | -8/Scraptown | Visited Chapter 10 5193 | -8/Scraptown | Visited Science Testing Area 5229 | -8/Scraptown | Visited Sword Containment 5386 | -8/Scraptown | Visited Scrapoid Research Area 5432 | -8/Scraptown | Visited DA-N13 Charitable Foundation 5551 | -8/Scraptown | Visited Abandonware Association 5580 | -8/Scraptown | Learned abandonware demo "MELTYB.EXE" 5624 | -8/Scraptown | Visited Curators Association 5694 | -8/Scraptown | Visited Analyses Database 5744 | -8/Scraptown | Visited Science Guys 5821 | -8/Scraptown | Visited Observation Area 6692 | -8/Scraptown | Met Optimus 6692 | -8/Scraptown | Accepted into 0bPrime 6789 | -8/Scraptown | Discovered new exit (range 5) 6797 | -8/Scraptown | Entered Factory 6797 | -6/Factory | Evolved 4 slots: Propulsion x1, Utility x1, Weapon x2 6808 | -6/Factory | Identified exit to DSF 6808 | -6/Factory | Entered DSF 6879 | -6/DSF | Discovered new exit (range 19) 6904 | -6/DSF | Additional patrols routed to DSF 6953 | -6/DSF | Entered Factory 6953 | -5/Factory | Evolved 2 slots: Power x1, Propulsion x1 7257 | -5/Factory | Identified exit to Factory 7257 | -5/Factory | Identified exit to Upper Caves 8088 | -5/Factory | Build established: Scavenger-Mutant 8618 | -5/Factory | Repaired Rocket Launcher+ 9159 | -5/Factory | Lost 5 parts (1p2n2w) 9355 | -5/Factory | Spotted B-75 Beast 9410 | -5/Factory | Destroyed B-75 Beast 9418 | -5/Factory | Lost 11 parts (1p6n2u2w) 9547 | -5/Factory | Lost 3 parts (3w) 9568 | -5/Factory | Entered another Factory area 9568 | -4/Factory | Evolved 2 slots: Utility x2 9791 | -4/Factory | Spotted B-86 Titan 9816 | -4/Factory | Build established: Hacker-Mutant 10160 | -4/Factory | Identified exit to Upper Caves 10160 | -4/Factory | Identified exit to Extension 10292 | -4/Factory | Loaded intel: 8 recycling unit locations 10367 | -4/Factory | Build established: Hacker-Gladiator 10421 | -4/Factory | Learned location of Protoforge (-3) 10465 | -4/Factory | Entered Upper Caves 10487 | -4/Upper Caves | Learned location of 1 exit from Research 10509 | -4/Upper Caves | Lost 13 parts (1p5n3u4w) 10738 | -4/Upper Caves | Build established: Mutant 10745 | -4/Upper Caves | Attracted the attention of an 0b10 outpost 10793 | -4/Upper Caves | Lost 4 parts (1n2u1w) 10819 | -4/Upper Caves | System corruption reached 10% 10849 | -4/Upper Caves | Lost 5 parts (1p3u1w) 10970 | -4/Upper Caves | Core integrity fell below 50% 11186 | -4/Upper Caves | Attracted the attention of an 0b10 checkpoint 11355 | -4/Upper Caves | Encountered a Warlord checkpoint 11439 | -4/Upper Caves | Lost 3 allies 11971 | -4/Upper Caves | Discovered new exit (range 3) 11972 | -4/Upper Caves | Identified exit to Upper Caves 11973 | -4/Upper Caves | Entered another Upper Caves area 12005 | -4/Upper Caves | Discovered new exit (range 13) 12011 | -4/Upper Caves | Identified exit to Research 12112 | -4/Upper Caves | Learned Research security intel 12184 | -4/Upper Caves | Discovered new exit (range 5) 12185 | -4/Upper Caves | Identified exit to Warlord 12186 | -4/Upper Caves | Entered Warlord 12202 | -4/Warlord | System corruption cleaned by Quarantine Array 12304 | -4/Warlord | Learned Armory emergency access door positions 12304 | -4/Warlord | Learned Testing stockpile data 12305 | -4/Warlord | Learned Armory terminal intel 12305 | -4/Warlord | Learned Armory recycling unit intel 12305 | -4/Warlord | Learned Research fabricator intel 12336 | -4/Warlord | Received a Watcher feed algorithm from an ecstatic Tinkerer 12336 | -4/Warlord | Ran a Watcher feed algorithm 12392 | -4/Warlord | Rebuked by Warlord 12417 | -4/Warlord | Warlord's base attacked by MAIN.C 12484 | -4/Warlord | Found Prototype Energy Cannon 12484 | -4/Warlord | Identified Vortex Driver 12489 | -4/Warlord | Found Vortex Driver 12526 | -4/Warlord | Build established: Derelict-Mutant 12767 | -4/Warlord | Warlord forces counterattacked 12787 | -4/Warlord | Opened side exit 12869 | -4/Warlord | Spotted Executioner 12873 | -4/Warlord | Spotted Striker 12874 | -4/Warlord | Core integrity fell below 20% 12875 | -4/Warlord | Discovered new exit (range 9) 12877 | -4/Warlord | Identified exit to Proximity Caves 12878 | -4/Warlord | Entered Proximity Caves 12976 | -3/Proximity Caves | Destroyed by G-73 Enforcer with Heavy Laser Last Messages --------------- 12957_ Penetrated by Slug. 12957_ Backup Power III destroyed. 12957_ Slug penetrates Wall. 12957_ Penetrated by Slug. 12957_ Lyr. Light Armor Plating destroyed. 12958_ Slug penetrates Wall. 12958_ Penetrated by Slug. 12958_ Slug penetrates Wall. 12960_ Penetrated by Slug. 12960_ Slug penetrates Wall. 12961_ Penetrated by Slug. 12963_ Mak. Axe destroyed. 12964_ Searching scrap... 12964_ Found Mak. Trap Scanner. 12964_ Found 64 Matter. 12965_ Slug penetrates Wall. 12965_ Penetrated by Slug. 12974_ Mak. Flight Unit destroyed. 12974_ Slug penetrates Wall. 12975_ Dropped Mak. Axe. Map ----- +----------------------------------------------------+ | ?????????????????????????????????????????????????? | | ?????????????????????????????????????????????????? | | ?????????????????????????????????????????????????? | | ?????????????????????????????????????????????????? | | ?????????????????????????????????????????????????? | | ?????????????????????????????????????????????????? | | ?????????????????????????????????????????????????? | | ?????????????????????????????????????????????????? | | ?????????????????????????????????????????????????? | | ?????????????????????????????????????????????????? | | ?????????????????????????????????????????????????? | | ?????????????????????????????????????????????????? | | ?????????????????????????????????????????????????? | | ?????????????????????????????????????????????????? | | ?????????????????????????????????????????????????? | | ?????????????????????????????????????????????????? | | ?????????????????????????????????????????????????? | | ?????????????????????????????????????????????????? | | ?????????????????????????????????????????????????? | | ?????????????????????????????????????????????????? | | ????????????????????????????#######??????????????? | | ???????????????????????????## ##?????????????? | | ??????????????????????????## #?????????????? | | ???????????????????#???#### ###?????????????? | | ???????????????????# ## ! #???????????????? | | ???????????????????# @% ##??????????????? | | ???????????????????###### / #??????????????? | | ????????????????????????# ## #??????????????? | | ????????????????????????# #### #??????????????? | | ????????????????????????# #??## #??????????????? | | ????????????????????????# #???# #?????????????? | | ???????????????????###### #??? #?????????????? | | ???????????????????# #??? #?????????????? | | ???????????????????# hh#??? ?????????????? | | ???????????????????## ##?? ????????????? | | ??????????????####### ##? #???????????? | | ??????????? #? ##???????????? | | ??????????????######## ########????????????? | | #????????????????????### g ##?????????????????? | | #??????????###?????????### #?????????????????? | | ##????????## ####????#### #?????????????????? | | #?????#### ##??## ##?????????????????? | | #?????# #??# ##??????????????????? | | ##??????? ##?# #???????????????????? | | #????""?????# ### ##???????????????????? | | ?????"" ???# ## ##????????????????????? | | #????#" $ ### ##?????????????????????? | | ######??## #??????????????????????? | | * #??# ## ##??????????????????????? | | ##?# ## #### ##???????????????????????? | +----------------------------------------------------+ Best States ------------- Heat Dissipation 81 Coolant Potential 100 Energy Generation 37 Energy Capacity 490 Matter Stores 320 Matter Capacity 350 Sight Range 20 Robot Scan Range 16 Terrain Scan Density 10 Jamming Range 16 Base Temperature (-) 200 Armor Coverage 225 Core Shielding 30 Weapon Cycling 20 Melee Speed Boost 30 Phase Shifting 10 Evasion (%) 74 Targeting Accuracy 15 Melee Accuracy 12 Core Analysis 9 Recoil Reduction 12 Offensive Hacking 24 Defensive Hacking 20 Item Schematics ----------------- Deuterium Engine | -8/Recycling | Hacked Robot Schematics ------------------ None Fabricated ------------ Nothing Repaired ---------- Sensor Array | 45% | -10/Materials Rocket Launcher | 72% | -5/Factory Studied --------- Rocket Launcher | -9/Materials | Hacked Arm. Wheel | -9/Materials | Hacked Alien Tech Used ----------------- None Achievements -------------- Factory Defaults Challenges ------------ None Game ------ Seed RecyclingSpikedReconstructor Manual? 0 Play Time 01:55:55 Cumulative 104.9 hours Start 2026.02.14 @ 12:28:43 End 2026.02.14 @ 17:16:31 Sessions 7 Manual Loads 0 Difficulty Rogue Special Mode None Game No. 72 Rogue 68 Adventurer 4 Explorer 0 Win Type - Total 4 Types 4/0/0/0/0/0/0/0/0/0 Lore% 65 Gallery% 49 Achievement% 40 Wizard Run 0 Options --------- Layout 2 ASCII 0 Keyboard 1 Movement Vi Keybinds 0 Fullscreen 2 Font 24/Smallcaps Map View 50x44 Zoom Use 0% Tactical HUD 1 Map Filters NONE Filters NONE Steam 1 RUN: edef23fd-ae54-4456-9abb-7380534698d2